[Event "3rd President Cup-A 2024"]
[Site "Tashkent"]
[Date "2024.11.28"]
[Round "8.1"]
[White "Abdusattorov, Nodirbek"]
[Black "Xu, Minghui"]
[Result "1-0"]
[ECO "C45"]
[WhiteElo "2777"]
[BlackElo "2405"]
[Annotator "TA"]
[PlyCount "63"]
[EventDate "2024.11.22"]
[EventType "swiss"]
[EventCountry "UZB"]
[SourceTitle "playchess.com"]
[Source "ChessBase"]
[SourceQuality "1"]
[TimeControl "5400+30"]

{[%evp 20,63,22,27,95,88,85,92,88,79,84,97,86,80,127,125,143,101,123,132,168,169,167,173,237,141,127,135,121,135,140,138,245,253,269,242,250,259,390,427,425,417,451,458,499,497]} 1. e4 {[%emt 1:31:00]} e5 2. Nf3 Nc6 3. d4 {[%emt 0:01:00]} exd4 {[%emt 1:32:00]} 4. Nxd4 {[%emt 0:00:30]} Bc5 {[%emt 0:00:30]} 5. Be3 {[%emt 0:00:30]} Qf6 {[%emt 0:00:30]} 6. c3 {[%emt 0:00:30]} Nge7 {[%emt 0:00:30]} 7. Bc4 {[%emt 0:00:30]} Ne5 {[%emt 0:00:30]} 8. Be2 {[%emt 0:00:00]} Qg6 {[%emt 0:00:00]} 9. O-O {[%emt 0:00:00]} O-O {[%emt 0:00:00]} 10. Nd2 {[%emt 0:00:00]} d5 {[%emt 0:00:00]} 11. Bh5 {[%emt 0:00:00]} Qa6 {[%emt 0:00:00] [#]} (11... Qf6 $11 {keeps the balance.}) 12. Nf5 $1 $16 {[%emt 0:00:00]} Bd6 {[%emt 0:00:00]} (12... Nxf5 13. Bxc5) 13. Nxe7+ {[%emt 0:00:00]} Bxe7 {[%emt 0:00:00] White is better.} 14. exd5 {[%emt 0:00:00]} Bf5 {[%emt 0:00:00]} 15. Bd4 {[%emt 0:00:00]} Nd3 {[%emt 0:00:00][%cal Be5d3,Bd3f4,Bf4e2][%mdl 32]} 16. Qf3 {[%emt 0:00:00]} Bg6 {[%emt 0:00:00]} (16... g6 $142) 17. Bxg6 {[%emt 0:00:00]} fxg6 {[%emt 0:00:00]} 18. Qe2 {[%emt 0:00:00]} Rae8 {[%emt 0:00:00] [#]} 19. Ne4 {[%emt 0:00:00] Against Bc5} Nf4 {[%emt 0:00:00]} 20. Qxa6 {[%emt 0:00:00]} bxa6 {[%emt 0:00:00]} 21. Rfd1 {[%emt 0:00:00]} Ba3 {[%emt 0:00:00]} (21... Nxd5 $142 22. Bxa7 Nb6 23. Bxb6 cxb6) 22. f3 {[%emt 0:00:00]} (22. bxa3 $6 Rxe4 23. Bxa7 Rd8 $16 (23... Ne2+ 24. Kf1 $16)) ({White should try} 22. Re1 $18 Bxb2 23. Rab1) 22... Bxb2 {[%emt 0:00:00]} 23. Rab1 {[%emt 0:00:00]} Ne2+ {[%emt 0:00:00]} 24. Kh1 {[%emt 0:00:00]} Ba3 {[%emt 0:00:00]} 25. Rb3 {[%emt 0:00:00] White is more active.} (25. Bxa7 Rxe4 26. fxe4 Nxc3 $14) 25... Be7 {[%emt 0:04:30]} (25... Nxd4 $16 26. Rxd4 (26. Rxa3 Nc2 $16) 26... Bd6) 26. Bxa7 $18 {[%emt 0:00:00]} g5 {[%emt 0:03:14]} 27. Rb2 {[%emt 0:00:00]} Nf4 {[%emt 0:00:14]} 28. Rb7 {[%emt 0:00:00][%cal Bb2b7,Bb7c7,Bc7c8][%mdl 32]} g4 {[%emt 0:01:21]} (28... Rc8 {might work better.} 29. c4 Rf7) 29. Rxc7 {[%emt 0:00:00]} ({Less strong is} 29. fxg4 Ne2 30. Rb2 (30. Rxc7 Bd8 $18) 30... Nf4 $18) 29... Bd8 {[%emt 0:01:01]} 30. Rc8 {[%emt 0:00:00]} gxf3 {[%emt 0:00:27]} 31. gxf3 {[%emt 0:00:00]} Ng6 {[%emt 0:00:30]} 32. d6 {[%emt 0:00:00] Weighted Error Value: White=0.09 (flawless) /Black=0.33.  Mistake:       	White=1     	Black=4      OK:         	White=15    	Black=7      Best:        	White=2     	---} ({Much less strong is} 32. c4 Nh4 33. c5 Nxf3) 1-0

[Event "3rd President Cup-A 2024"]
[Site "Tashkent"]
[Date "2024.11.28"]
[Round "8.2"]
[White "Nihal Sarin"]
[Black "Sindarov, Javokhir"]
[Result "1-0"]
[ECO "C55"]
[WhiteElo "2676"]
[BlackElo "2682"]
[Annotator "TA"]
[PlyCount "77"]
[EventDate "2024.11.22"]
[EventType "swiss"]
[EventCountry "UZB"]
[SourceTitle "playchess.com"]
[Source "ChessBase"]
[SourceQuality "1"]
[TimeControl "5400+30"]

{[%evp 17,77,24,18,27,25,28,31,0,21,0,6,0,0,0,0,0,7,11,26,0,0,11,13,-18,15,18,93,85,95,95,91,101,129,131,172,160,164,64,92,55,53,42,395,368,477,470,706,721,710,731,718,696,670,621,679,645,1137,942,1209,1028,1008,900]} 1. e4 {[%emt 0:00:35]} e5 {[%emt 0:00:05]} 2. Nf3 {[%emt 0:00:05]} Nc6 {[%emt 0:00:04]} 3. Bc4 {[%emt 0:00:06]} Nf6 {[%emt 0:00:07]} 4. d3 {[%emt 0:00:05]} h6 {[%emt 0:01:44]} 5. O-O {[%emt 1:32:09]} d6 {[%emt 0:00:57]} 6. a4 {[%emt 0:00:00]} g6 {[%emt 0:01:08]} 7. Nc3 {[%emt 0:00:00]} Bg7 {[%emt 0:00:54]} 8. h3 {[%emt 0:00:00]} O-O {[%emt 0:01:10]} 9. Be3 {[%emt 0:00:00] C55: Two Knights: 4 d3, 4 d4 exd4 5 e5 and Max Lange Attack.} Kh7 {[%emt 0:07:54]} 10. Re1 {[%emt 0:00:00]} Na5 {[%emt 0:02:08]} 11. Ba2 {[%emt 0:00:00]} c5 {[%emt 0:00:15]} 12. Ne2 $146 {[%emt 0:00:00]} ({Predecessor:} 12. Nd5 Nc6 13. Nxf6+ Qxf6 14. c3 g5 15. Nh2 Qd8 16. Nf1 f5 17. exf5 Bxf5 18. Ng3 {½-½ Brilej,J (2321)-Lodici,L (2524) Mitropa Cup Mali Losinj 2023 (9.8)}) 12... Nc6 {[%emt 0:01:39]} 13. c3 {[%emt 0:00:00]} b6 {[%emt 0:05:18]} 14. d4 {[%emt 0:00:00]} exd4 {[%emt 0:00:17]} (14... Nxe4 $2 15. Bd5 Nxf2 16. Bxf2 $18) 15. cxd4 {[%emt 0:00:00]} Nb4 {[%emt 0:00:03]} 16. Bb1 {[%emt 0:00:00]} Bb7 {[%emt 0:15:15]} 17. d5 {[%emt 0:00:00]} Nd7 {[%emt 0:00:34]} 18. Qd2 {[%emt 0:00:00]} a5 {[%emt 0:03:20]} 19. Ra3 {[%emt 0:00:00]} Ba6 {[%emt 0:01:36]} 20. h4 {[%emt 0:00:00]} h5 {[%emt 0:05:14]} 21. Bg5 {[%emt 0:00:00]} Qc7 {[%emt 0:04:22]} (21... Qe8 $1 $11) 22. Ng3 $1 $16 {[%emt 0:00:00]} Ne5 {[%emt 0:02:22]} 23. Nxe5 $1 {[%emt 0:00:00]} dxe5 {[%emt 0:00:38]} 24. Qd1 $1 {[%emt 0:00:00]} f6 {[%emt 0:07:23]} 25. Bd2 {[%emt 0:00:00]} Qf7 {[%emt 0:03:43] [#]} 26. f4 $1 {[%emt 0:00:00]} exf4 {[%emt 0:01:06] [#]} 27. Bxf4 {[%emt 0:00:00]} (27. e5 $1 $18 {[%cal Re5e6]} f5 28. Nxf5 gxf5 (28... Qxd5 $2 29. Ne7 $18) 29. e6) 27... Kh8 {[%emt 0:05:10]} 28. Qd2 {[%emt 0:00:00]} Rad8 {[%emt 0:04:00]} 29. Rf3 {[%emt 0:00:00]} Qe7 $2 {[%emt 0:02:48][%mdl 8192]} (29... Nc6 $14) 30. d6 $18 {[%emt 0:00:00]} Qe6 {[%emt 0:09:08]} 31. e5 {[%emt 0:00:00]} Nc6 {[%emt 0:05:26]} (31... fxe5 32. Bxe5 Qd7 33. Rxf8+ (33. Bxg6 Rxf3 34. gxf3 Bd3 $18) 33... Rxf8 34. Nxh5 (34. Bxg6 Kg8 $18) 34... Bxe5 35. Qh6+ (35. Bxg6 Bd4+ 36. Kh1 Nd3 $11) (35. Rxe5 Qf7 $18) 35... Qh7 36. Qxf8+) (31... Qd5 $142 32. Qxd5 (32. Bxg6 Qxd2 33. Bxd2 fxe5 $18) 32... Nxd5) 32. exf6 $18 {[%emt 0:09:18]} ({And not} 32. Bxg6 fxe5 33. Bf5 (33. Bxh5 Rxd6 34. Qf2 Nd4 $19) 33... Qxd6 (33... Rxf5 $2 {too greedy.} 34. Nxf5 Qxf5 35. Bxe5 $18) 34. Qxd6 Rxd6 $11) 32... Qxf6 {[%emt 0:00:28]} 33. Be5 $1 {[%emt 0:00:04]} Qxe5 {[%emt 0:02:28]} 34. Rxf8+ {[%emt 0:00:21]} (34. Bxg6 $2 {loses.} Qd4+ (34... Qxb2 $2 35. Rxf8+ Rxf8 36. Qg5 $19) (34... Qxd6 $2 35. Qg5 $19) 35. Qxd4 Bxd4+ $19) 34... Rxf8 {[%emt 0:00:01]} 35. Rxe5 Nxe5 {[%emt 0:00:01]} 36. Bxg6 {[%emt 0:00:15]} Ng4 {[%emt 0:06:37]} 37. Bxh5 {[%emt 0:02:15]} (37. Nxh5 $2 Rf1#) 37... Rf2 {[%emt 0:00:04]} 38. Qd5 {[%emt 0:01:53]} Bc4 {[%emt 0:01:23]} 39. d7 {[%emt 0:00:56]} 1-0

[Event "3rd President Cup-A 2024"]
[Site "Tashkent"]
[Date "2024.11.28"]
[Round "8.3"]
[White "Neelash Saha"]
[Black "Vokhidov, Shamsiddin"]
[Result "1/2-1/2"]
[ECO "D35"]
[WhiteElo "2458"]
[BlackElo "2681"]
[Annotator "TA"]
[PlyCount "103"]
[EventDate "2024.11.22"]
[EventType "swiss"]
[EventCountry "UZB"]
[SourceTitle "playchess.com"]
[Source "ChessBase"]
[SourceQuality "1"]
[TimeControl "5400+30"]

{[%evp 9,103,18,33,35,34,34,34,27,25,29,25,24,21,0,0,-18,-12,-21,-20,-20,0,0,14,0,14,0,10,0,0,0,0,0,0,0,9,20,10,10,22,0,87,0,0,0,0,0,0,-14,0,0,0,0,0,0,0,0,0,0,0,-37,-29,-31,-29,-30,-40,-40,-40,-53,-53,-43,-43,-43,-50,-186,-186,-187,-70,-66,-42,-116,-36,-192,0,-7,0,0,0,0,0,0,0,0,0,0,0,0]} 1. d4 {[%emt 0:01:20]} Nf6 {[%emt 0:00:21]} 2. c4 {[%emt 0:00:06]} e6 {[%emt 0:00:09]} 3. Nc3 {[%emt 0:00:16]} d5 {[%emt 0:01:01]} 4. cxd5 {[%emt 0:00:13]} exd5 {[%emt 0:00:04]} 5. Bg5 {[%emt 0:00:04]} Be6 {[%emt 0:01:05]} 6. e3 {[%emt 0:01:13]} Nbd7 {[%emt 0:00:13]} 7. Bd3 {[%emt 0:02:55]} c6 {[%emt 0:01:16]} 8. Nge2 {[%emt 0:02:11] White is slightly better.} h6 {[%emt 0:01:36]} 9. Bf4 {[%emt 0:01:02]} g5 {[%emt 0:01:43]} 10. Bg3 {[%emt 0:00:08]} Nh5 {[%emt 0:01:15]} 11. Qc2 {[%emt 0:01:03]} Nxg3 {[%emt 0:00:44]} 12. Nxg3 {[%emt 0:00:24]} h5 {[%emt 0:00:04]} 13. h4 {[%emt 0:04:39]} gxh4 {[%emt 0:06:29]} 14. Nf5 {[%emt 0:00:05]} Bxf5 {[%emt 0:07:04]} 15. Bxf5 {[%emt 0:00:07]} Nb6 {[%emt 0:10:53]} 16. O-O {[%emt 0:07:37]} Bg7 {[%emt 0:08:25]} 17. Rad1 {[%emt 0:02:43]} Kf8 {[%emt 0:02:21]} 18. e4 {[%emt 0:08:55]} dxe4 $1 {[%emt 0:00:46]} 19. Qxe4 {[%emt 0:00:06]} Qg5 {[%emt 0:05:21]} 20. Rfe1 {[%emt 0:02:05]} Rh6 {[%emt 0:04:34]} 21. Qf3 {[%emt 0:07:20]} Rd8 {[%emt 0:08:57]} (21... Rf6 $5 22. Re5 $8 Rh6 $14) 22. Ne4 {[%emt 0:04:55]} Qe7 {[%emt 0:00:01]} 23. Nc5 {[%emt 0:00:54]} Qc7 {[%emt 0:00:09]} 24. Re4 {[%emt 0:13:30]} Nc4 {[%emt 0:03:44]} (24... Bf6 $11) 25. Rxh4 {[%emt 0:02:19] White is more active.} (25. Re6 $1 $16 {Threatens to win with Bd3.} Nd6 26. Bd3) 25... b6 $11 {[%emt 0:01:43][%cal Bb7b6,Bb6b5,Bb5b4][%mdl 32]} 26. Nb3 {[%emt 0:08:47]} Nxb2 {[%emt 0:03:05][%cal Bc4b2,Bb2a4,Ba4c3,Bc3b5,Bb5d4][%mdl 32]} 27. Rc1 {[%emt 0:00:18][%cal Of3e2]} a5 {[%emt 0:01:40]} 28. Qc3 {[%emt 0:12:06]} Na4 {[%emt 0:02:11]} (28... Qe7 {is more complex.} 29. Re4 Qg5 30. Bh3 Qd5) 29. Qe3 {[%emt 0:00:10]} Re8 {[%emt 0:03:19]} 30. Qf3 {[%emt 0:03:29]} b5 {[%emt 0:00:25]} 31. g3 {[%emt 0:00:20][%cal Of5e4]} (31. Rxh5 Rxh5 32. Qxh5 Nc3 $15) 31... b4 $1 {[%emt 0:01:57]} 32. Kg2 {[%emt 0:01:03][%cal Oc1h1]} (32. Rxh5 Rxh5 33. Qxh5 Nc3 $17) 32... Nc3 {[%emt 0:00:54]} 33. Nc5 {[%emt 0:00:07]} (33. Rxh5 Rxh5 34. Qxh5 Qd6 $19) 33... Re7 {[%emt 0:01:54] Dodges Nd7+} 34. a3 {[%emt 0:05:48]} Nb5 {[%emt 0:22:07]} 35. d5 {[%emt 0:01:30] Black must now prevent dxc6.} Nd4 {[%emt 0:00:00]} (35... Nxa3 36. dxc6 (36. Rxh5 Rxh5 37. Qxh5 Qd6 $14) 36... Bc3 37. Nd7+ (37. Rxh5 Rxh5 38. Nd7+ Ke8 $17) 37... Ke8 38. Re4 (38. Rxh5 Rxh5 39. Qxh5 Qxc6+ 40. Kh2 Rxd7 $17) (38. Be4 Nc4 $16) 38... Qxc6 (38... Rxc6 $2 39. Rxc3 Kd8 40. Rxe7 $18) 39. Qf4 $18) 36. Qd3 {[%emt 0:00:40]} Qe5 {[%emt 0:00:00]} (36... cxd5 $2 37. Nd7+ (37. Rxd4 Bxd4 38. Nd7+ Rxd7 $18) 37... Rxd7 38. Rxc7 Rxc7 39. Rxd4 Bxd4 40. Qxd4 $18) 37. dxc6 $1 {[%emt 0:03:19]} Rxc6 {[%emt 0:00:00]} ({Of course not} 37... Qxf5 38. Rxd4 Qxd3 39. Rxd3 Rxc6 40. axb4 $11 (40. Rd8+ Re8 $11)) 38. Nd7+ {[%emt 0:00:38] [#]} Rxd7 $1 {[%emt 0:00:00]} 39. Rxc6 {[%emt 0:00:06]} Qxf5 {[%emt 0:00:00]} 40. Rc8+ {[%emt 0:00:44]} Ke7 {[%emt 0:00:00]} 41. Qe3+ {[%emt 0:00:16] [#]} (41. Qxf5 $15 Nxf5 42. Re4+ Kf6 43. axb4) 41... Ne6 $1 $19 {[%emt 0:00:00]} 42. axb4 {[%emt 0:00:31]} a4 {[%emt 0:00:00]} ({Better is} 42... Qb5 $19 {Hoping for ...Qb7+.} 43. Rcc4 a4) 43. Rc5 $15 {[%emt 0:00:44]} Rd5 {[%emt 0:00:00][%cal Rd5c5]} 44. Rc7+ {[%emt 0:00:18]} (44. Ra5 $1 $15) 44... Kf8 {[%emt 0:00:00]} (44... Kd8 $17 45. Ra7 Bd4 46. Ra8+ Ke7) 45. Ra7 {[%emt 0:01:35] [#]} (45. Rc8+ $1 $15 Rd8 46. Rxd8+ Nxd8 47. b5) 45... Rd3 $2 {[%emt 0:01:12]} (45... Bf6 $1 $19 {[%cal Rf6h4]} 46. Re4 Rd4 47. Rxd4 Bxd4 48. Ra8+ Kg7) 46. Ra8+ {[%emt 0:00:09] The position is equal.} Ke7 {[%emt 0:00:32]} 47. Rxh5 {[%emt 0:00:53]} Qg6 {[%emt 0:00:58][%cal Od3e3]} 48. Ra7+ {[%emt 0:00:36]} Kf8 {[%emt 0:00:54][%cal Od3e3]} 49. Ra8+ {[%emt 0:00:50]} Ke7 {[%emt 0:00:16][%cal Od3e3]} 50. Ra7+ {[%emt 0:00:40]} Kf8 {[%emt 0:00:26][%cal Od3e3]} 51. Ra8+ {[%emt 0:00:28]} Ke7 {[%emt 0:00:01][%cal Od3e3]} 52. Ra7+ {[%emt 0:00:53] Weighted Error Value: White=0.16 (very precise) /Black=0.19 (very precise) .  Missed win:     	---       	Black=1      Mistake:       	White=4     	Black=3      Inaccurate:     	White=2     	---        OK:         	White=19    	Black=22     Best:        	White=4     	Black=2      Strong:       	White=1     	Black=2      Brilliant:      	---       	Black=1} 1/2-1/2

[Event "3rd President Cup-A 2024"]
[Site "Tashkent"]
[Date "2024.11.28"]
[Round "8.4"]
[White "Atabayev, Saparmyrat"]
[Black "Maghsoodloo, Parham"]
[Result "0-1"]
[ECO "B92"]
[WhiteElo "2520"]
[BlackElo "2712"]
[Annotator "RC"]
[PlyCount "156"]
[EventDate "2024.11.22"]
[EventType "swiss"]
[EventCountry "UZB"]
[SourceTitle "playchess.com"]
[Source "ChessBase"]
[SourceQuality "1"]
[TimeControl "5400+30"]

1. e4 {[%emt 0:00:03]} c5 {[%emt 0:00:36]} 2. Nf3 {[%emt 0:00:04]} d6 {[%emt 0:00:04]} 3. d4 {[%emt 0:00:04]} cxd4 {[%emt 0:00:04]} 4. Nxd4 {[%emt 0:00:02]} Nf6 {[%emt 0:00:06]} 5. Nc3 {[%emt 0:00:03]} a6 {[%emt 0:00:04]} 6. Be2 {[%emt 0:00:24]} e5 {[%emt 0:06:08]} 7. Nb3 {[%emt 0:00:04]} Be6 {[%emt 0:00:34]} 8. g4 {[%emt 0:01:02]} h6 {[%emt 0:00:45]} 9. h4 {[%emt 0:03:41]} Be7 {[%emt 0:02:36]} 10. g5 {[%emt 0:09:12]} hxg5 {[%emt 0:01:00]} 11. Bxg5 {[%emt 0:00:02]} Nbd7 {[%emt 0:02:33]} 12. Qd3 {[%emt 0:02:48]} Nh5 {[%emt 0:18:45]} 13. Nd5 {[%emt 0:15:35]} Bxd5 {[%emt 0:03:07]} 14. Qxd5 {[%emt 0:00:19]} Qc7 {[%emt 0:00:45]} 15. O-O-O {[%emt 0:04:06]} Rc8 {[%emt 0:01:08]} 16. c3 {[%emt 0:02:57]} b5 {[%emt 0:01:57]} 17. Kb1 {[%emt 0:03:54]} g6 {[%emt 0:02:48]} 18. Qd3 {[%emt 0:02:48]} Rb8 {[%emt 0:10:40]} 19. Bg4 {[%emt 0:04:51]} Ndf6 {[%emt 0:04:16]} 20. Bf3 {[%emt 0:02:22]} Kf8 {[%emt 0:03:19]} 21. Nc1 {[%emt 0:04:11]} a5 {[%emt 0:02:13]} 22. Ne2 {[%emt 0:00:51]} Qc4 {[%emt 0:07:06]} 23. Qe3 {[%emt 0:06:59]} b4 {[%emt 0:03:17]} 24. Rc1 {[%emt 0:13:28]} a4 {[%emt 0:02:18]} 25. Rhd1 {[%emt 0:02:03]} b3 {[%emt 0:04:20]} 26. a3 {[%emt 0:00:38]} Ng7 {[%emt 0:00:10]} 27. Qa7 {[%emt 0:05:13]} Rd8 {[%emt 0:03:47]} 28. Ng3 {[%emt 0:05:21]} Ne6 {[%emt 0:04:07]} 29. Be3 {[%emt 0:04:40]} Rxh4 {[%emt 0:04:25]} 30. Rh1 {[%emt 0:00:55]} Nd7 {[%emt 0:00:28]} 31. Qb7 {[%emt 0:01:23]} Nec5 {[%emt 0:02:11]} 32. Qc7 {[%emt 0:00:34]} Qd3+ {[%emt 0:03:13]} 33. Ka1 {[%emt 0:00:02]} Qa6 {[%emt 0:00:15]} 34. Be2 {[%emt 0:02:36]} Qb6 {[%emt 0:00:41]} 35. Qxb6 {[%emt 0:00:02]} Nxb6 {[%emt 0:00:03]} 36. Bb5 {[%emt 0:00:32]} Rxh1 {[%emt 0:01:33]} 37. Rxh1 {[%emt 0:00:02]} Kg7 {[%emt 0:00:15]} 38. c4 {[%emt 0:00:55]} Nbd7 {[%emt 0:01:24]} 39. f3 {[%emt 0:00:21]} Nf8 {[%emt 0:00:44]} 40. Ne2 {[%emt 0:01:45]} Nfe6 {[%emt 0:00:05]} 41. Nc3 {[%emt 0:00:48]} Ra8 {[%emt 0:01:17]} 42. Bc6 {[%emt 0:00:54]} Ra6 {[%emt 0:00:45]} 43. Bb5 {[%emt 0:00:13]} Ra8 {[%emt 0:01:13]} 44. Kb1 {[%emt 0:00:07]} Bg5 {[%emt 0:00:09]} 45. Bf2 {[%emt 0:00:51]} Nd3 {[%emt 0:02:08]} 46. Bb6 {[%emt 0:00:27]} Ndc5 {[%emt 0:00:30]} 47. Rd1 {[%emt 0:00:09]} Bd8 {[%emt 0:02:53]} 48. Bxd8 {[%emt 0:00:25]} Nxd8 {[%emt 0:00:37]} 49. Rxd6 {[%emt 0:00:03]} Nde6 {[%emt 0:00:02]} 50. Rd5 {[%emt 0:01:51]} Nf4 {[%emt 0:01:03]} 51. Rd1 {[%emt 0:02:11]} Kh6 {[%emt 0:00:21]} 52. Bc6 {[%emt 0:00:28]} Ra7 {[%emt 0:00:04]} 53. Rg1 {[%emt 0:00:42]} Nfe6 {[%emt 0:00:11]} 54. Bd5 {[%emt 0:00:38]} Ng5 {[%emt 0:00:19]} 55. Rf1 {[%emt 0:00:31]} Ra6 {[%emt 0:00:29]} 56. Kc1 {[%emt 0:00:42]} Kg7 {[%emt 0:01:06]} 57. Kd2 {[%emt 0:00:04]} Nh3 {[%emt 0:00:29]} 58. Ne2 {[%emt 0:00:38]} Rf6 {[%emt 0:00:02]} 59. Ke3 {[%emt 0:00:17]} Nf4 {[%emt 0:00:02]} 60. Nxf4 {[%emt 0:00:13]} Rxf4 {[%emt 0:00:01]} 61. Rg1 {[%emt 0:01:04]} Rh4 {[%emt 0:00:06]} 62. Rg2 {[%emt 0:00:45]} Rh3 {[%emt 0:00:35]} 63. Bc6 {[%emt 0:00:04]} Kf6 {[%emt 0:00:21]} 64. Rd2 {[%emt 0:00:20]} g5 {[%emt 0:00:02]} 65. Rd6+ {[%emt 0:00:24]} Ne6 {[%emt 0:00:01]} 66. Bxa4 {[%emt 0:00:49]} g4 {[%emt 0:00:01]} 67. c5 {[%emt 0:00:26]} Rxf3+ {[%emt 0:03:00]} 68. Ke2 {[%emt 0:00:00]} Kg7 {[%emt 0:01:20]} 69. Rd1 {[%emt 0:01:30]} Nxc5 {[%emt 0:01:02]} 70. Bc6 {[%emt 0:00:30]} Ne6 {[%emt 0:00:08]} 71. Bd5 {[%emt 0:00:16]} Nf4+ {[%emt 0:00:06]} 72. Kd2 {[%emt 0:00:08]} g3 {[%emt 0:00:32]} 73. Bc4 {[%emt 0:00:20]} g2 {[%emt 0:00:52]} 74. Rg1 {[%emt 0:00:19]} Rf2+ {[%emt 0:00:30]} 75. Kc3 {[%emt 0:00:45]} Nh3 {[%emt 0:00:05]} 76. Rxg2+ {[%emt 0:00:09]} Rxg2 {[%emt 0:00:03]} 77. a4 {[%emt 0:00:04]} Nf2 {[%emt 0:00:04]} 78. Kxb3 {[%emt 0:00:17]} Nd1 {[%emt 0:00:12]} 0-1